bitfinex/quotes_BTCUSD_20250826
["timestamp","ask_amount","ask_price","bid_price","bid_amount"]
[1756180080359,0.18168604,110080.0,110070.0,0.33951255]
[1756180081780,0.18168604,110080.0,110070.0,0.18687255]
[1756180081982,0.18168604,110080.0,110070.0,0.33951255]
[1756180082538,0.24079376,110090.0,110070.0,0.33951255]
[1756180084160,0.23883376,110090.0,110070.0,0.33637255]
[1756180084370,0.23883376,110090.0,110080.0,0.18482604]
[1756180084371,0.21906701,110090.0,110080.0,0.18482604]
[1756180084612,0.21906701,110090.0,110080.0,0.18685604]
[1756180084810,0.19175301,110090.0,110080.0,0.18685604]
[1756180085019,0.18266954,110090.0,110080.0,0.18685604]
[1756180085226,0.001,110090.0,110080.0,0.18685604]
[1756180085646,0.0010478,110090.0,110080.0,0.18685604]
[1756180085854,0.18780734,110090.0,110070.0,0.27889142]
[1756180086061,0.18168604,110080.0,110070.0,0.27889253]
[1756180086264,0.18467734,110090.0,110070.0,0.43666253]
[1756180086472,0.18168604,110080.0,110070.0,0.43666253]
[1756180086853,0.18467734,110090.0,110070.0,0.43666253]
[1756180087293,0.18168604,110080.0,110070.0,0.28406253]
[1756180087464,0.18168604,110080.0,110070.0,0.28506253]
[1756180087678,0.18381604,110080.0,110070.0,0.43128361]
[1756180087910,0.18381604,110080.0,110070.0,0.09384308]
[1756180088114,0.18677604,110080.0,110070.0,0.06450108]
[1756180088326,0.18677604,110080.0,110070.0,0.21710108]
[1756180088953,0.18677604,110080.0,110070.0,0.06450108]
[1756180089259,0.18677604,110080.0,110070.0,0.21710108]
[1756180090210,0.18677604,110080.0,110070.0,0.21810108]
[1756180091404,0.18677604,110080.0,110070.0,0.22013108]
[1756180092026,0.18677604,110080.0,110070.0,0.21810108]
[1756180092240,0.18677604,110080.0,110070.0,0.22013108]
[1756180094009,0.18677604,110080.0,110070.0,0.06550108]
[1756180094205,0.18677604,110080.0,110070.0,0.21810108]
[1756180095018,0.18677604,110080.0,110070.0,0.06550108]
[1756180095221,0.18677604,110080.0,110070.0,0.21810108]
[1756180100827,0.18381604,110080.0,110070.0,0.22013108]
[1756180101034,0.18381604,110080.0,110070.0,0.22327108]
[1756180103853,0.18381604,110080.0,110070.0,0.22013108]
[1756180104069,0.18677604,110080.0,110070.0,0.21810108]
[1756180104283,0.27823806,110080.0,110070.0,0.002]
[1756180104494,0.56699445,110080.0,110070.0,0.002]
[1756180104704,0.5633787,110080.0,110070.0,0.002]
[1756180104907,0.58301864,110080.0,110070.0,0.002]
[1756180105342,0.92301864,110080.0,110070.0,0.002]
[1756180106163,0.92301864,110080.0,110070.0,0.001]
[1756180106334,0.92401864,110080.0,110070.0,0.001]
[1756180106570,0.77145864,110080.0,110070.0,0.001]
[1756180106771,0.92401864,110080.0,110070.0,0.001]
[1756180106997,0.92301864,110080.0,110070.0,0.001]
[1756180107750,0.18171906,110060.0,110050.0,0.15256]
[1756180107958,0.18379906,110060.0,110050.0,0.15256]
[1756180108346,0.18691906,110060.0,110050.0,0.15459]
[1756180108555,0.21424106,110060.0,110050.0,0.15459]
[1756180109937,0.18173557,110050.0,110040.0,0.07302]
[1756180110197,0.18381557,110050.0,110040.0,0.07505]
[1756180110429,0.18693557,110050.0,110040.0,0.22244]
[1756180110635,0.20633866,110050.0,110040.0,0.15256]
[1756180111073,0.18175209,110040.0,110030.0,0.07313]
[1756180111274,0.18383209,110040.0,110030.0,0.22819799]
[1756180111694,0.18175209,110040.0,110030.0,0.22819799]
[1756180111892,0.18175209,110040.0,110030.0,0.40996659]
[1756180112098,0.18174077,110050.0,110040.0,0.18375209]
[1756180112305,0.18174077,110050.0,110040.0,0.18903209]
[1756180112511,0.18174077,110050.0,110040.0,0.18703209]
[1756180113297,0.18382077,110050.0,110040.0,0.00203]
[1756180113503,0.18174077,110050.0,110040.0,0.00528]
[1756180114821,0.18174077,110050.0,110040.0,0.00628]
[1756180116452,0.22124901,110060.0,110040.0,0.00628]
[1756180116706,0.18174077,110050.0,110040.0,0.00628]
[1756180118962,0.18382077,110050.0,110040.0,0.00303]
[1756180119579,0.18382077,110050.0,110040.0,0.00628]
[1756180120971,0.18694077,110050.0,110040.0,0.1536]
[1756180121172,0.18694077,110050.0,110040.0,0.15356]
[1756180121785,0.18694077,110050.0,110040.0,0.001]
[1756180121948,0.18694077,110050.0,110040.0,0.15356]
[1756180122557,0.18382077,110050.0,110040.0,0.15559]
[1756180122956,0.18382077,110050.0,110040.0,0.15884]
[1756180123184,0.18141273,110050.0,110040.0,0.15884]
[1756180124538,0.17933273,110050.0,110040.0,0.34059209]
[1756180126130,0.18141273,110050.0,110040.0,0.15884]
[1756180126311,0.17933273,110050.0,110040.0,0.15884]
[1756180128586,0.18141273,110050.0,110040.0,0.15884]
[1756180128801,0.18141273,110050.0,110040.0,0.15559]
[1756180129224,0.18453273,110050.0,110040.0,0.15356]
[1756180130645,0.18453273,110050.0,110040.0,0.15559]
[1756180130646,0.18141273,110050.0,110040.0,0.15559]
[1756180130852,0.31122384,110060.0,110040.0,0.34059209]
[1756180131191,0.18173557,110050.0,110040.0,0.34059209]
[1756180132636,0.18173557,110050.0,110040.0,0.15884]
[1756180133585,0.18173557,110050.0,110040.0,0.34059209]
[1756180134617,0.18381557,110050.0,110040.0,0.15884]
[1756180135362,0.19234182,110050.0,110040.0,0.15884]
[1756180135566,0.19026182,110050.0,110040.0,0.15884]
[1756180136181,0.19026182,110050.0,110040.0,0.34059209]
[1756180136384,0.19026238,110050.0,110040.0,0.34059209]
[1756180136793,0.19224238,110050.0,110040.0,0.34059209]
[1756180136995,0.19224245,110050.0,110040.0,0.34059209]
[1756180137130,0.19026245,110050.0,110040.0,0.34059209]
[1756180137523,0.18173557,110050.0,110040.0,0.34059209]
[1756180138161,0.22884462,110060.0,110040.0,0.34059209]
[1756180138373,0.28046965,110060.0,110040.0,0.33734209]
[1756180138572,0.28369965,110060.0,110040.0,0.34054209]
[1756180139019,0.26405156,110060.0,110040.0,0.34054209]
[1756180139460,0.24699725,110060.0,110040.0,0.34054209]
[1756180139686,0.24699725,110060.0,110040.0,0.33954209]
[1756180139828,0.24476725,110060.0,110050.0,0.18493557]
[1756180140034,0.24674725,110060.0,110050.0,0.18702557]
[1756180140233,0.24774725,110060.0,110050.0,0.18702557]
[1756180140564,0.24576725,110060.0,110050.0,0.18702557]
[1756180140741,0.03785115,110060.0,110050.0,0.18702557]
[1756180140960,0.001,110060.0,110050.0,0.18702557]
[1756180141382,0.002,110060.0,110050.0,0.17686557]
[1756180142992,0.21812184,110070.0,110050.0,0.17686557]
[1756180143194,0.22664507,110070.0,110060.0,0.33427906]
[1756180143404,0.22862507,110070.0,110060.0,0.33536906]
[1756180143718,0.24670108,110070.0,110060.0,0.33536906]
[1756180143944,0.24670108,110070.0,110060.0,0.15365]
[1756180144148,0.24993108,110070.0,110060.0,0.15365]
[1756180144310,0.24670108,110070.0,110060.0,0.15365]
[1756180145470,0.24669776,110070.0,110060.0,0.15365]
[1756180145886,0.24992776,110070.0,110060.0,0.15365]
[1756180146108,0.18171906,110060.0,110050.0,0.001]
[1756180146334,0.18692906,110060.0,110050.0,0.15352]
[1756180146754,0.18692906,110060.0,110050.0,0.15252]
[1756180147204,0.18692906,110060.0,110040.0,0.22539592]
[1756180147413,0.18173557,110050.0,110040.0,0.04044383]
[1756180147615,0.18371557,110050.0,110040.0,0.37680469]
[1756180147798,0.18371557,110050.0,110040.0,0.33636086]
[1756180148190,0.18175209,110040.0,110030.0,0.36637899]
[1756180148395,0.20445269,110040.0,110030.0,0.51889899]
[1756180148906,0.18175209,110040.0,110030.0,0.67863659]
[1756180149696,0.18373209,110040.0,110030.0,0.52611659]
[1756180149906,0.18175209,110040.0,110030.0,0.67863659]
[1756180150767,0.21229057,110050.0,110030.0,0.67863659]
[1756180150938,0.21229057,110050.0,110030.0,0.68063659]
[1756180151145,0.21229057,110050.0,110030.0,0.68163659]
[1756180151545,0.20906057,110050.0,110030.0,0.68063659]
[1756180151750,0.20906057,110050.0,110040.0,0.0032]
[1756180151993,0.22662397,110050.0,110040.0,0.00529]
[1756180152188,0.22860397,110050.0,110040.0,0.00529]
[1756180152432,0.18175209,110040.0,110030.0,0.67754659]
[1756180152643,0.18175209,110040.0,110030.0,0.67963659]
[1756180152851,0.18175209,110040.0,110030.0,0.41093659]
[1756180153882,0.18373209,110040.0,110030.0,0.07035799]
[1756180154093,0.18696209,110040.0,110030.0,0.22287799]
[1756180154504,0.18696209,110040.0,110030.0,0.22496799]
[1756180154723,0.00198,110040.0,110030.0,0.40993659]
[1756180154927,0.22985397,110050.0,110030.0,0.41193659]
[1756180155351,0.22985397,110050.0,110030.0,0.41293659]
[1756180157145,0.20906057,110050.0,110030.0,0.40873659]
[1756180157375,0.20906057,110050.0,110030.0,0.40993659]
[1756180157585,0.20906057,110050.0,110030.0,0.41093659]
[1756180158347,0.21229057,110050.0,110030.0,0.41093659]
[1756180159141,0.20906057,110050.0,110030.0,0.41093659]
[1756180159813,0.20906057,110050.0,110030.0,0.40773659]
[1756180160012,0.267332,110060.0,110040.0,0.18722399]
[1756180160214,0.35879402,110060.0,110050.0,0.15252]
[1756180160434,0.38809702,110060.0,110050.0,0.15252]
[1756180161274,0.21812801,110060.0,110050.0,0.33954557]
[1756180161467,0.22010801,110060.0,110050.0,0.33954557]
[1756180161601,0.22110801,110060.0,110050.0,0.15781]
[1756180162405,0.22010801,110060.0,110050.0,0.15781]
[1756180162817,0.22110801,110060.0,110050.0,0.15781]
[1756180163017,0.22110801,110060.0,110050.0,0.15881]
[1756180163267,0.22010801,110060.0,110050.0,0.15881]
[1756180163712,0.21950606,110060.0,110050.0,0.15881]
[1756180163912,0.21950606,110060.0,110050.0,0.15561]
[1756180164155,0.22273606,110060.0,110050.0,0.15561]
[1756180164941,0.22273606,110060.0,110050.0,0.15352]
[1756180168022,0.22273606,110060.0,110050.0,0.15558]
[1756180168255,0.21950606,110060.0,110050.0,0.15558]
[1756180168437,0.027323,110060.0,110050.0,0.34272726]
[1756180168735,0.20904206,110060.0,110050.0,0.34045557]
[1756180173144,0.21168571,110070.0,110050.0,0.34045557]
[1756180173346,0.18171906,110060.0,110050.0,0.34045557]
[1756180173551,0.18683906,110060.0,110050.0,0.001]
[1756180173756,0.18683906,110060.0,110050.0,0.15352]
[1756180173927,0.21416106,110060.0,110050.0,0.15352]
[1756180174131,0.21416106,110060.0,110050.0,0.001]
[1756180174334,0.21416106,110060.0,110050.0,0.15352]
[1756180177186,0.21416106,110060.0,110050.0,0.001]
[1756180177395,0.30562308,110060.0,110050.0,0.001]
[1756180177603,0.46666347,110060.0,110050.0,0.001]
[1756180177814,0.31414347,110060.0,110050.0,0.001]
[1756180178020,0.46666349,110060.0,110050.0,0.001]
[1756180178670,0.31414349,110060.0,110050.0,0.001]
[1756180178918,0.46666349,110060.0,110050.0,0.001]
[1756180179120,0.31414349,110060.0,110050.0,0.001]
[1756180183284,0.46666349,110060.0,110050.0,0.001]
[1756180183504,0.46666512,110060.0,110050.0,0.001]
[1756180184075,0.46666523,110060.0,110050.0,0.001]
[1756180186431,0.31414523,110060.0,110050.0,0.001]
[1756180188963,0.18173557,110050.0,110040.0,0.15562]
[1756180189097,0.18173557,110050.0,110040.0,0.0052]
[1756180189315,0.36252106,110060.0,110040.0,0.33943209]
[1756180189516,0.36252106,110060.0,110050.0,0.18487557]
[1756180189517,0.21856591,110060.0,110050.0,0.18487557]
[1756180189761,0.20904106,110060.0,110050.0,0.0052]
[1756180189981,0.18171906,110060.0,110050.0,0.0052]
[1756180190181,0.20904006,110060.0,110050.0,0.0052]
[1756180190845,0.20904006,110060.0,110050.0,0.18920726]
[1756180191009,0.20904006,110060.0,110050.0,0.18693557]
[1756180192468,0.20904006,110060.0,110050.0,0.18793557]
[1756180193297,0.20904006,110060.0,110050.0,0.15868]
[1756180193547,0.20904006,110060.0,110050.0,0.16095169]
[1756180193753,0.20904006,110060.0,110050.0,0.34268726]
[1756180193971,0.20904006,110060.0,110050.0,0.34041557]
[1756180194381,0.20904006,110060.0,110050.0,0.0062]
[1756180194620,0.21416006,110060.0,110050.0,0.15348]
[1756180195037,0.21112006,110060.0,110050.0,0.15554]
[1756180195251,0.20904006,110060.0,110050.0,0.16095169]
[1756180195453,0.20904006,110060.0,110050.0,0.34268726]
[1756180195654,0.20904006,110060.0,110050.0,0.34041557]
[1756180197930,0.027321,110060.0,110050.0,0.34041557]
[1756180198166,0.18171906,110060.0,110050.0,0.34041557]
[1756180198379,0.20904006,110060.0,110050.0,0.34041557]
[1756180199406,0.18171906,110060.0,110050.0,2.12401557]
[1756180202386,0.22107184,110070.0,110050.0,2.12401557]
[1756180202597,0.21812184,110070.0,110050.0,2.12087557]
[1756180202801,0.21812184,110070.0,110060.0,0.00317]
[1756180203011,0.22019184,110070.0,110060.0,0.00523]
[1756180203881,0.22119184,110070.0,110060.0,0.00523]
[1756180204094,0.22414184,110070.0,110060.0,0.00206]
[1756180204290,0.22314184,110070.0,110060.0,0.00206]
[1756180204498,0.22019184,110070.0,110060.0,0.00523]
[1756180204730,0.22314184,110070.0,110060.0,0.00206]
[1756180204933,0.22019184,110070.0,110060.0,0.00523]
[1756180205341,0.22314184,110070.0,110050.0,2.11492557]
[1756180206589,0.22414184,110070.0,110050.0,2.11492557]
[1756180207175,0.18171906,110060.0,110050.0,2.11492557]
[1756180207475,0.18171906,110060.0,110050.0,2.11698557]
[1756180208001,0.18673906,110060.0,110050.0,2.11698557]
[1756180208418,0.18673906,110060.0,110050.0,2.11492557]
[1756180209723,0.18673906,110060.0,110050.0,1.96450557]
[1756180209928,0.18673906,110060.0,110050.0,2.11492557]
[1756180210144,0.18673906,110060.0,110050.0,2.11698557]
[1756180210789,0.18673906,110060.0,110050.0,2.11798557]
[1756180212194,0.18171906,110060.0,110050.0,2.11798557]
[1756180213300,0.18466906,110060.0,110050.0,2.11798557]
[1756180214451,0.18673906,110060.0,110050.0,1.96550557]
[1756180214664,0.18673906,110060.0,110050.0,2.11798557]
[1756180215222,0.18673906,110060.0,110050.0,1.96550557]
[1756180215451,0.18673906,110060.0,110050.0,2.11798557]
[1756180217780,0.17946502,110070.0,110050.0,2.11798557]
[1756180217996,0.17946502,110070.0,110050.0,2.12115557]
[1756180217997,0.18171906,110060.0,110050.0,2.12115557]
[1756180219251,0.18171906,110060.0,110050.0,2.12015557]
[1756180219669,0.18171906,110060.0,110050.0,2.12011557]
[1756180220140,0.18171906,110060.0,110050.0,1.96767557]
[1756180220349,0.18378906,110060.0,110050.0,1.94227]
[1756180221225,0.18378906,110060.0,110050.0,2.12400557]
[1756180222036,0.18171906,110060.0,110050.0,2.12400557]
[1756180226906,0.18369906,110060.0,110050.0,2.12400557]
[1756180227114,0.18369906,110060.0,110050.0,2.12083557]
[1756180227577,0.18369906,110060.0,110050.0,2.12387557]
[1756180228183,0.18171906,110060.0,110050.0,2.12387557]
[1756180231212,0.18241502,110070.0,110050.0,2.12387557]
[1756180231463,0.19094443,110070.0,110060.0,0.15244]
[1756180231674,0.19292443,110070.0,110060.0,0.15244]
[1756180233483,0.18171906,110060.0,110050.0,1.7836]
[1756180233684,0.18369906,110060.0,110050.0,1.93604]
[1756180233889,0.18369906,110060.0,110050.0,1.93808]
[1756180235104,0.18369906,110060.0,110050.0,2.11981557]
[1756180235329,0.18171906,110060.0,110050.0,2.12285557]
[1756180236283,0.18171906,110060.0,110050.0,1.78968]
[1756180236488,0.18689906,110060.0,110050.0,1.93908]
[1756180237643,0.18369906,110060.0,110050.0,2.12385557]
[1756180238070,0.18171906,110060.0,110050.0,2.12385557]
[1756180240804,0.18689906,110060.0,110050.0,1.93704]
[1756180241018,0.18689906,110060.0,110050.0,1.93908]
[1756180241450,0.18689906,110060.0,110050.0,1.7846]
[1756180241672,0.18689906,110060.0,110050.0,1.93704]
[1756180241899,0.18171906,110060.0,110050.0,2.12385557]
[1756180244644,0.33190502,110070.0,110050.0,2.12385557]
[1756180244851,0.17891046,110070.0,110060.0,0.33947054]
[1756180245058,0.17891046,110070.0,110060.0,0.33923906]
[1756180245472,0.03585056,110070.0,110060.0,0.33923906]
[1756180245862,0.21755303,110070.0,110060.0,0.33923906]
[1756180246264,0.20902255,110070.0,110060.0,0.33923906]
[1756180247109,0.02732,110070.0,110060.0,0.33923906]
[1756180247307,0.18486954,110090.0,110070.0,0.18169326]
[1756180247308,0.18166954,110090.0,110070.0,0.18169326]
[1756180247508,0.31537196,110090.0,110080.0,0.15244]
[1756180247746,0.32055196,110090.0,110080.0,0.15244]
[1756180247933,0.32055196,110090.0,110080.0,0.15144]
[1756180248460,0.31420316,110090.0,110080.0,0.15348]
[1756180248668,0.32679491,110090.0,110080.0,0.15348]
[1756180248871,0.32999491,110090.0,110080.0,0.15348]
[1756180249100,0.32999007,110090.0,110080.0,0.15348]
[1756180249715,0.33199007,110090.0,110080.0,0.15348]
[1756180250126,0.32999007,110090.0,110080.0,0.15348]
[1756180250334,0.33299007,110090.0,110080.0,0.15348]
[1756180250803,0.33199007,110090.0,110080.0,0.15348]
[1756180251144,0.32446611,110090.0,110080.0,0.15348]
[1756180253577,0.21203234,110090.0,110080.0,0.15652]
[1756180254004,0.21401234,110090.0,110080.0,0.15652]
[1756180254247,0.21401234,110090.0,110080.0,0.34047711]
[1756180254248,0.0030478,110090.0,110080.0,0.34047711]
[1756180254462,0.0030478,110090.0,110080.0,0.33820604]
[1756180255770,0.0010478,110090.0,110080.0,0.33820604]
[1756180255982,0.18482734,110090.0,110080.0,0.33820604]
[1756180256194,0.18482734,110090.0,110080.0,0.15448]
[1756180257239,0.18782734,110090.0,110080.0,0.00204]
[1756180257451,0.18782734,110090.0,110080.0,0.15448]
[1756180257661,0.18682734,110090.0,110080.0,0.15448]
[1756180258085,0.18682734,110090.0,110080.0,0.15248]
[1756180258299,0.18682734,110090.0,110070.0,0.28201526]
[1756180258300,0.18168604,110080.0,110070.0,0.28202455]
[1756180258559,0.18168604,110080.0,110070.0,0.36663455]
[1756180258916,0.20903134,110090.0,110080.0,0.18168604]
[1756180259144,0.20903134,110090.0,110080.0,0.18682604]
[1756180261482,0.0273618,110090.0,110080.0,0.18682604]
[1756180261761,4.78e-05,110090.0,110080.0,0.18682604]
[1756180262649,4.78e-05,110090.0,110080.0,0.33942604]
[1756180263102,4.78e-05,110090.0,110080.0,0.36673704]
[1756180263516,4.78e-05,110090.0,110080.0,0.36773704]
[1756180264765,4.78e-05,110090.0,110080.0,0.36873704]
[1756180266220,4.78e-05,110090.0,110080.0,0.36869704]
[1756180267067,0.18382734,110090.0,110080.0,0.21613704]
[1756180267272,0.18382734,110090.0,110080.0,0.36869704]
[1756180267683,0.18171734,110090.0,110080.0,0.36869704]
[1756180267897,4.78e-05,110090.0,110080.0,0.36869704]
[1756180269330,4.78e-05,110090.0,110080.0,0.36221704]
[1756180271218,4.78e-05,110090.0,110080.0,0.43205704]
[1756180271854,4.78e-05,110090.0,110080.0,0.54096808]
[1756180272059,4.78e-05,110090.0,110080.0,0.90177884]
[1756180274417,4.78e-05,110090.0,110080.0,0.90077884]
[1756180274629,4.78e-05,110090.0,110080.0,0.54096808]
[1756180274831,4.78e-05,110090.0,110080.0,0.90277884]
[1756180275859,4.78e-05,110090.0,110080.0,0.54220808]
[1756180276965,4.78e-05,110090.0,110080.0,0.81090808]
[1756180278145,4.78e-05,110090.0,110080.0,0.65810808]
[1756180278350,0.0021578,110090.0,110080.0,0.80777808]
[1756180278564,0.0021578,110090.0,110080.0,0.65497808]
[1756180278775,0.0051578,110090.0,110080.0,0.53907808]
[1756180280207,0.0051578,110090.0,110080.0,0.29280606]
[1756180280414,0.0051578,110090.0,110080.0,0.44560606]
[1756180280843,0.0051578,110090.0,110080.0,0.44761606]
[1756180281387,0.18682734,110090.0,110080.0,0.28183704]
[1756180281594,0.0051578,110090.0,110080.0,0.40732604]
[1756180282222,0.0051578,110090.0,110080.0,0.40933604]
[1756180282223,0.0021578,110090.0,110080.0,0.40933604]
[1756180282430,4.78e-05,110090.0,110080.0,0.41246604]
[1756180283259,0.0051578,110090.0,110080.0,0.40732604]
[1756180283665,0.0051578,110090.0,110080.0,0.40933604]
[1756180284276,0.0051578,110090.0,110080.0,0.40740604]
[1756180285182,0.0051578,110090.0,110080.0,0.25452604]
[1756180285322,0.0051578,110090.0,110080.0,0.40740604]
[1756180285729,0.0051578,110090.0,110080.0,0.40943604]
[1756180285730,0.0021578,110090.0,110080.0,0.40943604]
[1756180286431,0.0051478,110090.0,110080.0,0.40943604]
[1756180288385,0.0021578,110090.0,110080.0,0.40943604]
[1756180288708,0.0021578,110090.0,110080.0,0.41249604]
[1756180289351,0.0051478,110090.0,110080.0,0.40943604]
[1756180289703,0.18681734,110090.0,110080.0,0.07284]
[1756180289920,0.18681734,110090.0,110080.0,0.22572]
[1756180290089,0.21412934,110090.0,110080.0,0.22572]
[1756180290958,0.18681734,110090.0,110080.0,0.22572]
[1756180294035,0.18681734,110090.0,110080.0,0.40740604]
[1756180294219,0.18681734,110090.0,110080.0,0.22572]
[1756180296202,0.18681734,110090.0,110080.0,0.40740604]
[1756180296550,0.18681734,110090.0,110080.0,0.40943604]
[1756180297407,0.18681734,110090.0,110080.0,0.22572]
[1756180298564,0.18681734,110090.0,110080.0,0.25452604]
[1756180298774,0.18681734,110090.0,110080.0,0.40935604]
[1756180298976,0.18382734,110090.0,110080.0,0.25655604]
[1756180299177,0.18382734,110090.0,110080.0,0.40935604]
[1756180299414,0.18382734,110090.0,110080.0,0.40835604]
[1756180299628,0.18382734,110090.0,110080.0,0.41141604]
[1756180300467,0.18382734,110090.0,110080.0,0.40835604]
[1756180300867,0.18681734,110090.0,110080.0,0.22464]
[1756180301070,0.18681734,110090.0,110080.0,0.22264]
[1756180301436,0.18681734,110090.0,110080.0,0.22364]
[1756180301642,0.18681734,110090.0,110080.0,0.2236]
[1756180301976,0.18681734,110090.0,110080.0,0.22356]
[1756180302180,0.18681734,110090.0,110080.0,0.2236]
[1756180302586,0.21413034,110090.0,110080.0,0.001]
[1756180302778,0.21413034,110090.0,110080.0,0.1538]
[1756180308486,0.21413034,110090.0,110080.0,0.001]
[1756180308716,0.30559236,110090.0,110080.0,0.15372]
[1756180308930,0.30559236,110090.0,110080.0,0.001]
[1756180309956,0.30659236,110090.0,110080.0,0.001]
[1756180310594,0.18168604,110080.0,110070.0,0.15272]
[1756180310987,0.18677604,110080.0,110070.0,0.15272]
[1756180311626,0.18677604,110080.0,110070.0,0.15475]
[1756180312664,0.18677604,110080.0,110070.0,0.15575]
[1756180314044,0.18677604,110080.0,110070.0,0.15368]
[1756180314951,0.22847664,110080.0,110070.0,0.15571]
[1756180315755,0.22847664,110080.0,110070.0,0.15568]
[1756180315986,0.22847664,110080.0,110070.0,0.15368]
[1756180319233,0.31993866,110080.0,110070.0,0.1536]
[1756180319438,0.31484866,110080.0,110070.0,0.15865]
[1756180319644,0.31484866,110080.0,110070.0,0.34035255]
[1756180319645,0.20900304,110080.0,110070.0,0.34035255]
[1756180328119,0.15765059,110090.0,110070.0,0.34035255]
[1756180328329,0.18363604,110080.0,110070.0,0.00605]
[1756180328552,0.18674604,110080.0,110070.0,0.15564]
[1756180328755,0.18363604,110080.0,110070.0,0.15564]
[1756180329583,0.00195,110080.0,110070.0,0.34039255]
[1756180329774,0.18363604,110080.0,110070.0,0.33734255]
[1756180330231,0.18363604,110080.0,110070.0,0.002]
[1756180330454,0.18674604,110080.0,110070.0,0.15472]
[1756180330634,0.18674604,110080.0,110070.0,0.002]
[1756180330852,0.18674604,110080.0,110070.0,0.15292]
[1756180331098,0.18363604,110080.0,110070.0,0.33662255]
[1756180331299,0.39977016,110090.0,110070.0,0.33662255]
[1756180331503,0.18168604,110080.0,110070.0,0.33967255]
[1756180331708,0.18168604,110080.0,110070.0,0.34067255]
[1756180331921,0.18363604,110080.0,110070.0,0.34067255]
[1756180332196,0.18168604,110080.0,110070.0,0.34067255]
[1756180332403,0.18363604,110080.0,110070.0,0.34067255]
[1756180332976,0.18363604,110080.0,110070.0,0.15897]
[1756180333401,0.18363604,110080.0,110070.0,0.15592]
[1756180333888,0.18363604,110080.0,110070.0,0.15072]
[1756180334094,0.18674604,110080.0,110070.0,0.15072]
[1756180334352,0.18674604,110080.0,110070.0,0.15272]
[1756180334861,0.18363604,110080.0,110070.0,0.15272]
[1756180335919,0.18674604,110080.0,110070.0,0.15272]
[1756180336110,0.18674604,110080.0,110070.0,0.15072]
[1756180336533,0.18170255,110070.0,110060.0,0.07289]
[1756180336752,0.18170255,110070.0,110060.0,0.22472]
[1756180336753,0.18365255,110070.0,110060.0,0.22472]
[1756180336963,0.18676255,110070.0,110060.0,0.22472]
[1756180337333,0.18676255,110070.0,110060.0,0.06984]
[1756180337561,0.18676255,110070.0,110060.0,0.22276]
[1756180337737,0.18676255,110070.0,110060.0,0.22376]
[1756180337935,0.18676255,110070.0,110060.0,0.22276]
[1756180338570,0.18676255,110070.0,110060.0,0.22476]
[1756180339168,0.18365255,110070.0,110060.0,0.22476]
[1756180341068,0.18676255,110070.0,110060.0,0.22476]
[1756180341504,0.18676255,110070.0,110060.0,0.22468]
[1756180341732,0.18676255,110070.0,110060.0,0.06984]
[1756180341938,0.18171906,110060.0,110050.0,1.7836]
[1756180342138,0.18366906,110060.0,110050.0,1.93644]
[1756180342425,0.18366906,110060.0,110050.0,2.12322557]
[1756180342636,0.18171906,110060.0,110050.0,2.12322557]
[1756180343509,0.30048557,110070.0,110050.0,2.12522557]
[1756180343976,0.30048557,110070.0,110060.0,0.00305]
[1756180344213,0.30243557,110070.0,110060.0,0.00505]
[1756180344451,0.30243557,110070.0,110060.0,0.002]
[1756180344935,0.30554557,110070.0,110060.0,0.002]
[1756180345150,0.18171906,110060.0,110050.0,2.12222557]
[1756180345358,0.18138611,110060.0,110050.0,2.12422557]
[1756180345785,0.30359557,110070.0,110050.0,2.12422557]
[1756180346001,0.30356557,110070.0,110050.0,2.12420557]
[1756180346223,0.30356557,110070.0,110050.0,1.97136557]
[1756180346430,0.30048557,110070.0,110060.0,0.15292]
[1756180346632,0.30563557,110070.0,110060.0,0.15292]
[1756180348138,0.27831457,110070.0,110060.0,0.15292]
[1756180349136,0.27831457,110070.0,110060.0,0.15489]
[1756180349908,0.27523457,110070.0,110060.0,0.15792]
[1756180350113,0.27831457,110070.0,110060.0,0.15489]
[1756180351523,0.30563557,110070.0,110060.0,0.15489]
[1756180351974,0.30563557,110070.0,110060.0,0.15292]
[1756180353310,0.18171906,110060.0,110050.0,1.78663]
[1756180353506,0.18171906,110060.0,110050.0,1.94152]
[1756180353716,0.18171906,110060.0,110050.0,2.12325557]
[1756180354125,0.18171906,110060.0,110050.0,1.94152]
[1756180354769,0.18171906,110060.0,110050.0,1.94252]
[1756180354974,0.18171906,110060.0,110050.0,2.12625557]
[1756180355791,0.27845109,110070.0,110050.0,2.12625557]
[1756180356222,0.20902699,110070.0,110060.0,0.18474906]
[1756180356424,0.20902699,110070.0,110060.0,0.18671906]
[1756180356657,0.20902699,110070.0,110060.0,0.005]
[1756180357843,0.20902699,110070.0,110060.0,0.18671906]
[1756180358376,0.20902699,110070.0,110060.0,0.005]
[1756180358792,0.20902699,110070.0,110060.0,0.18671906]
[1756180359379,0.20902699,110070.0,110060.0,0.005]
[1756180360642,0.21109699,110070.0,110060.0,0.005]
[1756180362666,0.20902699,110070.0,110060.0,0.005]
[1756180363078,0.20902699,110070.0,110060.0,0.18671906]
[1756180363729,0.18170599,110070.0,110060.0,0.18671906]
[1756180380302,0.18711599,110070.0,110060.0,0.15268]
[1756180380924,0.18711599,110070.0,110060.0,0.33647906]
[1756180381270,0.18711599,110070.0,110050.0,2.03833365]
[1756180381474,0.18711599,110070.0,110060.0,0.1538]
[1756180382534,0.18711599,110070.0,110060.0,0.33759906]
[1756180384095,0.18711599,110070.0,110060.0,0.15388]
[1756180384330,0.18711599,110070.0,110060.0,0.33767906]
[1756180385108,0.18170599,110070.0,110060.0,0.34079906]
[1756180385338,0.027319,110080.0,110070.0,0.18170255]
[1756180385568,0.12804304,110090.0,110070.0,0.18378255]
[1756180385752,0.25148353,110090.0,110080.0,0.15416]
[1756180385907,0.25365353,110090.0,110080.0,0.15416]
[1756180386318,0.28096953,110090.0,110080.0,0.15416]
[1756180386759,0.28096784,110090.0,110080.0,0.15416]
[1756180387140,0.26051865,110090.0,110080.0,0.15416]
[1756180387344,0.25751865,110090.0,110080.0,0.15416]
[1756180387818,0.25751865,110090.0,110070.0,0.33586255]
[1756180388013,0.18168604,110080.0,110070.0,0.33586255]
[1756180388245,0.18168604,110080.0,110070.0,0.34106255]
[1756180388395,0.18385604,110080.0,110070.0,0.34106255]
[1756180388759,0.18485604,110080.0,110070.0,0.34106255]
[1756180389570,0.18485604,110080.0,110070.0,0.18378255]
[1756180389781,0.18909604,110080.0,110060.0,0.22124101]
[1756180389982,0.18909604,110080.0,110070.0,0.15608]
[1756180390181,0.18909604,110080.0,110070.0,0.15412]
[1756180390653,0.18809604,110080.0,110070.0,0.15412]
[1756180390832,0.18809604,110080.0,110070.0,0.33790255]
[1756180392269,0.18809604,110080.0,110070.0,0.15412]
[1756180392472,0.18170255,110070.0,110060.0,0.030436]
[1756180392700,0.18170255,110070.0,110060.0,0.186676]